bitfinex/quotes_ETHUSD_20250216
["timestamp","ask_amount","ask_price","bid_price","bid_amount"]
[1739746134502,0.269,2676.7,2676.5,3.73615]
[1739746135441,0.269,2676.7,2676.5,7.4723]
[1739746136804,0.269,2676.7,2676.6,3.73608]
[1739746137400,1.043,2676.8,2676.6,3.73608]
[1739746138830,0.0410863,2676.7,2676.6,3.73608]
[1739746139057,1.043,2676.8,2676.6,3.73608]
[1739746139268,0.0410863,2676.7,2676.6,4.564643]
[1739746139755,0.8225,2677.0,2676.7,3.73588]
[1739746139901,0.269,2676.9,2676.7,3.73588]
[1739746140101,5.34,2677.1,2676.8,0.7826]
[1739746140334,0.55,2677.4,2677.2,3.73524]
[1739746140539,0.55,2677.4,2677.3,4.108624]
[1739746143857,1.3725,2677.4,2677.3,4.108624]
[1739746144146,1.3725,2677.4,2677.3,3.7351]
[1739746145039,0.55,2677.4,2677.3,3.7351]
[1739746147451,0.55,2677.4,2677.3,4.5177]
[1739746147859,0.55,2677.4,2677.3,4.55504545]
[1739746148753,0.55,2677.4,2677.3,4.5177]
[1739746148926,0.55,2677.4,2677.3,5.342994]
[1739746149424,0.55,2677.4,2677.3,5.38034001]
[1739746149724,0.55,2677.4,2677.3,5.342994]
[1739746150752,0.55,2677.4,2677.3,5.38033946]
[1739746151125,0.55,2677.4,2677.3,8.38033946]
[1739746151325,0.55,2677.4,2677.3,8.342994]
[1739746152174,0.55,2677.4,2677.3,9.08195222]
[1739746152882,0.6564013,2677.4,2677.3,9.08195222]
[1739746162541,0.6564013,2677.4,2677.3,8.29935222]
[1739746165680,0.6564013,2677.4,2677.3,9.07025222]
[1739746172307,1.3e-06,2677.4,2677.3,10.4949419]
[1739746177174,1.3e-06,2677.4,2677.3,11.2449419]
[1739746180011,1.3e-06,2677.4,2677.3,11.0449419]
[1739746180491,1.3e-06,2677.4,2677.3,11.2449419]
[1739746182006,1.3e-06,2677.4,2677.3,16.5749419]
[1739746182800,1.3e-06,2677.4,2677.3,16.3749419]
[1739746188919,1.3e-06,2677.4,2677.3,15.8249419]
[1739746194013,1.3e-06,2677.4,2677.3,10.4949419]
[1739746214355,1.3e-06,2677.4,2677.3,9.7240419]
[1739746216925,1.3e-06,2677.4,2677.3,10.5001419]
[1739746221981,1.3e-06,2677.4,2677.3,10.5001419]
[1739746222177,1.3e-06,2677.4,2677.3,9.07545222]
[1739746224466,1.3e-06,2677.4,2677.3,8.29935222]
[1739746227128,0.8136013,2677.4,2677.3,8.29935222]
[1739746227342,0.8136013,2677.4,2677.3,7.47405822]
[1739746228162,1.3e-06,2677.4,2677.3,7.47405822]
[1739746230422,1.3e-06,2677.4,2677.3,8.30625822]
[1739746242042,0.8136,2677.8,2677.4,3.0]
[1739746242342,0.8136,2677.8,2677.7,6.73454]
[1739746261045,5.34,2678.3,2678.2,3.73385]
[1739746261216,0.005,2678.4,2678.2,3.73385]
[1739746261417,0.7834,2678.3,2678.2,3.7338]
[1739746261743,0.7834,2678.3,2678.1,3.73397]
[1739746262317,0.7834,2678.3,2678.1,7.46788]
[1739746262551,0.7834,2678.3,2678.1,3.73391]
[1739746262810,0.7834,2678.3,2678.1,7.4678]
[1739746263061,0.7834,2678.3,2678.1,3.7339]
[1739746263268,0.7834,2678.3,2678.1,7.46781]
[1739746264265,0.7834,2678.3,2678.1,3.7339]
[1739746264560,0.7834,2678.3,2678.1,7.4678]
[1739746264762,0.7834,2678.3,2678.2,3.73385]
[1739746265958,0.9679971,2678.3,2678.2,3.73385]
[1739746267357,0.7834,2678.3,2678.2,3.73385]
[1739746267566,0.7834,2678.2,2678.1,3.73399]
[1739746270962,0.7834,2678.2,2678.0,3.73405]
[1739746271869,0.7834,2678.2,2678.0,7.46808]
[1739746272038,0.7834,2678.2,2678.1,3.73399]
[1739746273270,0.7834,2678.2,2678.0,7.46804]
[1739746273440,0.7834,2678.2,2678.1,3.73399]
[1739746273773,1.0524,2678.2,2678.1,3.73399]
[1739746287393,0.269,2678.2,2678.1,3.73399]
[1739746287602,1.0692,2678.2,2678.1,3.73399]
[1739746293126,0.269,2678.2,2678.1,3.73399]
[1739746295473,0.19596786,2678.4,2678.0,3.73401]
[1739746295678,0.005,2678.4,2678.3,3.73371]
[1739746295916,1.0742,2678.4,2678.3,3.73371]
[1739746296210,0.274,2678.4,2678.3,3.73371]
[1739746298147,0.005,2678.4,2678.3,3.73371]
[1739746301488,0.005,2678.4,2678.3,4.558864]
[1739746303215,0.005,2678.4,2678.3,3.73371]
[1739746315580,0.005,2678.4,2678.3,4.50381]
[1739746318483,0.005,2678.4,2678.3,4.54114224]
[1739746319519,0.005,2678.4,2678.3,4.50381]
[1739746321683,0.005,2678.4,2678.3,4.60381]
[1739746323524,0.005,2678.4,2678.3,3.83371]
[1739746323525,0.7572,2678.4,2678.3,3.83371]
[1739746323883,0.005,2678.4,2678.3,3.83371]
[1739746333745,0.005,2678.4,2678.3,8.420764]
[1739746333930,1e-05,2678.4,2678.3,8.420764]
[1739746334138,1e-05,2678.4,2678.3,8.970764]
[1739746336254,1e-05,2678.4,2678.3,14.300764]
[1739746338721,1e-05,2678.4,2678.3,14.48331527]
[1739746339244,1e-05,2678.4,2678.3,15.90800495]
[1739746339747,1e-05,2678.4,2678.3,14.48331527]
[1739746343137,0.8252,2679.5,2679.4,3.73217]
[1739746361002,0.8252,2679.5,2679.3,3.7323]
[1739746362802,0.8252,2679.5,2679.1,3.73248]
[1739746363008,0.8252,2679.5,2679.3,3.73231]
[1739746363410,0.8252,2679.5,2679.1,7.46507]
[1739746364108,1.43797624,2679.5,2679.1,3.73251]
[1739746364269,0.8046,2679.4,2679.2,3.73245]
[1739746365198,0.8046,2679.4,2679.3,3.73231]
[1739746366594,0.8046,2679.4,2679.2,3.73232]
[1739746369103,0.8046,2679.3,2678.7,3.7331]
[1739746369291,0.8046,2679.2,2678.5,0.7715]
[1739746369497,3.73248,2679.2,2678.7,3.73303]
[1739746369820,0.8046,2679.1,2678.8,3.0]
[1739746370486,0.8046,2679.1,2678.8,6.73293]
[1739746371020,0.8046,2679.1,2678.8,3.73293]
[1739746373627,0.269,2679.0,2678.8,3.73293]
[1739746374632,0.269,2679.0,2678.9,3.73287]
[1739746380663,0.269,2679.0,2678.8,7.466]
[1739746381769,0.269,2679.0,2678.8,3.733]
[1739746381922,0.269,2679.0,2678.9,3.73287]
[1739746385336,0.269,2679.4,2679.0,4.5609]
[1739746385522,1.0295,2679.4,2679.1,3.73253]
[1739746385862,0.7605,2679.4,2679.1,3.73253]
[1739746386164,0.269,2679.3,2679.1,3.73253]
[1739746386967,0.269,2679.3,2679.2,3.73245]
[1739746388065,1.0295,2679.4,2679.2,3.73245]
[1739746389571,1.0295,2679.4,2679.0,4.56101]
[1739746389782,1.0295,2679.4,2679.1,3.73252]
[1739746390672,1.0295,2679.4,2679.0,3.73271]
[1739746390974,2.039646,2679.4,2679.1,3.73253]
[1739746391809,2.039646,2679.4,2679.0,3.73271]
[1739746392957,0.7626,2679.3,2678.8,7.46589]
[1739746393479,0.7626,2679.3,2678.8,7.46582]
[1739746395614,4.49492,2679.3,2678.8,3.73291]
[1739746395812,0.7626,2679.2,2678.8,3.73291]
[1739746398313,0.7626,2679.2,2678.8,7.46585]
[1739746398472,0.7626,2679.2,2679.0,3.73264]
[1739746399514,0.7626,2679.2,2679.0,7.46529]
[1739746400082,0.7626,2679.2,2679.0,3.73264]
[1739746401413,0.7626,2679.2,2679.0,7.46531]
[1739746402416,0.7626,2679.2,2679.0,3.73264]
[1739746403727,0.7626,2679.2,2679.0,7.4653]
[1739746404026,0.269,2679.1,2679.0,3.73264]
[1739746404525,0.269,2679.3,2679.2,3.73239]
[1739746404886,0.269,2679.4,2679.3,3.73227]
[1739746412851,0.7626,2679.5,2679.3,3.73227]
[1739746413141,0.269,2679.4,2679.3,3.73227]
[1739746420550,5.34,2679.6,2679.2,3.73239]
[1739746420551,5.34,2679.6,2679.5,3.73203]
[1739746421430,5.34,2679.6,2679.5,4.558708]
[1739746421815,0.1461027,2679.7,2679.6,3.7319]
[1739746427763,0.1461027,2679.7,2679.6,4.4997]
[1739746428273,0.1461027,2679.7,2679.6,7.53701747]
[1739746428436,0.1461027,2679.7,2679.6,7.4997]
[1739746428773,0.1461027,2679.7,2679.6,9.29482928]
[1739746432759,2.7e-06,2679.7,2679.6,9.29482928]
[1739746435563,1.059,2680.7,2680.6,3.7305]
[1739746440476,1.059,2680.7,2680.5,3.73062]
[1739746440677,1.059,2680.7,2680.5,7.46124]
[1739746441276,1.059,2680.7,2680.5,3.73062]
[1739746443773,0.03504807,2680.6,2680.5,3.73062]
[1739746444750,0.03504807,2680.6,2680.5,4.56332]
[1739746445061,0.03607435,2680.6,2680.5,4.56332]
[1739746445260,0.268,2680.8,2680.5,4.56332]
[1739746445581,0.0360846,2680.6,2680.5,3.73062]
[1739746445785,0.7787,2680.7,2680.5,3.73062]
[1739746448294,0.7787,2680.7,2680.3,8.2943]
[1739746448492,0.7787,2680.7,2680.3,7.4616]
[1739746448892,0.7787,2680.7,2680.3,3.73078]
[1739746449086,4.50908,2680.7,2680.3,3.0]
[1739746449400,0.7787,2680.7,2680.3,3.73091]
[1739746453758,4.50908,2680.7,2680.3,3.73091]
[1739746454452,0.7787,2680.7,2680.3,3.73091]
[1739746455730,4.50914,2680.7,2680.2,4.46805867]
[1739746455932,3.73067,2680.5,2679.9,3.73136]
[1739746456093,4.48949,2680.4,2679.9,3.73136]
[1739746456294,0.7587,2680.4,2679.9,3.73136]
[1739746457102,0.7587,2680.4,2680.0,3.73133]
[1739746458641,0.7587,2680.4,2679.9,3.73136]
[1739746458808,4.48949,2680.4,2679.9,3.73136]
[1739746461533,4.48949,2680.4,2679.8,5.30937342]
[1739746461709,4.48949,2680.4,2679.8,4.49397342]
[1739746462445,4.48949,2680.4,2679.8,3.73162]
[1739746462738,4.48949,2680.4,2679.9,3.73145]
[1739746463655,0.7587,2680.4,2679.9,3.73145]
[1739746463860,4.48952,2680.4,2679.9,3.73145]
[1739746464060,4.48952,2680.4,2679.9,3.7314]
[1739746468155,4.48952,2680.4,2679.9,7.46279]
[1739746468360,1.0347,2680.3,2679.9,3.73139]
[1739746472721,1.0347,2680.3,2680.0,3.73123]
[1739746473818,1.0347,2680.3,2679.9,3.73146]
[1739746475276,0.7667,2680.3,2679.9,3.73146]
[1739746475462,0.268,2680.2,2680.0,3.73134]
[1739746476788,0.268,2680.2,2680.0,3.73134]
[1739746477083,0.268,2680.2,2680.1,3.7312]
[1739746477880,0.268,2680.3,2680.1,3.7312]
[1739746482770,2.19138968,2680.5,2680.1,3.73112]
[1739746483094,0.268,2680.4,2680.2,3.731]
[1739746483698,0.268,2680.4,2680.3,3.73091]
[1739746483894,0.268,2680.4,2680.0,4.50994]
[1739746484197,0.268,2680.4,2680.1,3.73107]
[1739746484499,0.268,2680.4,2680.2,3.73103]
[1739746487881,0.268,2680.4,2680.3,3.73092]
[1739746491188,0.268,2680.4,2680.2,7.46201]
[1739746492000,0.268,2680.4,2680.3,3.73092]
[1739746492898,2.37861796,2680.7,2680.3,3.73092]
[1739746493083,0.268,2680.5,2680.3,3.73092]
[1739746493326,0.268,2680.5,2680.4,3.73078]
[1739746494334,1.42468968,2681.1,2681.0,3.72995]
[1739746494499,1.69268968,2681.1,2681.0,3.72995]
[1739746494704,1.42468968,2681.1,2681.0,3.72995]
[1739746494916,1.69268968,2681.1,2680.9,3.73007]
[1739746495335,0.268,2681.1,2680.9,3.73001]
[1739746495505,0.268,2681.1,2681.0,3.72995]
[1739746496232,1.42468968,2681.3,2681.2,3.72967]
[1739746496400,0.268,2681.2,2681.1,3.72979]
[1739746504625,0.268,2681.2,2680.9,3.73]
[1739746504830,0.268,2681.2,2681.0,3.72994]
[1739746506358,0.03507781,2681.1,2681.0,3.72994]
[1739746509628,0.268,2681.2,2681.0,3.72994]
[1739746510027,0.03534953,2681.1,2681.0,3.72994]
[1739746513360,0.268,2681.2,2681.0,3.72994]
[1739746513567,0.268,2681.2,2681.1,0.42567055]
[1739746517873,0.268,2681.2,2681.0,3.72994]
[1739746520066,1.0995,2681.2,2681.0,3.72994]
[1739746520239,1.0995,2681.2,2680.9,3.73007]
[1739746523955,1.0995,2681.2,2680.8,4.52902]
[1739746524276,1.0995,2681.2,2680.9,3.73005]
[1739746525471,1.0995,2681.2,2680.9,4.555948]
[1739746531148,1.0995,2681.2,2680.9,3.73005]
[1739746532455,0.07622572,2681.1,2680.9,3.73005]
[1739746537856,0.07622572,2681.1,2680.7,3.7303]
[1739746538062,0.07622572,2681.1,2680.6,0.74637948]
[1739746538365,3.80614572,2681.1,2680.6,4.47687948]
[1739746538694,5.2308354,2681.1,2680.6,3.7305]
[1739746539497,0.7952,2680.8,2680.3,3.73081]
[1739746539656,0.07625136,2680.7,2680.3,3.73081]
[1739746539859,4.52549,2680.8,2680.3,3.73081]
[1739746540059,0.07625136,2680.7,2680.3,3.73081]
[1739746540259,4.52549,2680.8,2680.3,3.73081]
[1739746540580,0.07620522,2680.7,2680.3,3.73081]
[1739746541092,0.07620522,2680.6,2680.3,3.73081]
[1739746541289,8.2558,2680.8,2680.3,3.73081]
[1739746541496,0.07620522,2680.7,2680.3,3.73081]
[1739746541655,8.2558,2680.8,2680.3,3.73081]
[1739746541855,0.07612322,2680.7,2680.3,3.73081]
[1739746542129,8.2558,2680.8,2680.3,3.73081]
[1739746542394,0.07612322,2680.7,2680.3,3.73081]
[1739746542688,4.52549,2680.8,2680.3,3.73081]
[1739746542992,0.07612322,2680.7,2680.3,3.73081]
[1739746543431,4.52549,2680.8,2680.3,3.73081]
[1739746543566,0.07610272,2680.6,2680.3,3.73081]
[1739746543897,0.7601,2680.6,2680.2,3.73106]
[1739746544081,0.07610272,2680.5,2680.2,3.73106]
[1739746548403,0.268,2680.4,2680.3,3.73092]
[1739746548808,0.34407197,2680.4,2680.3,3.73092]
[1739746554371,0.07607197,2680.4,2680.3,3.73092]
[1739746554577,0.07607197,2680.4,2680.3,5.35665613]
[1739746554788,0.268,2680.6,2680.5,3.73064]
[1739746558922,0.3410784,2680.6,2680.5,3.73064]
[1739746561311,0.0730784,2680.6,2680.5,4.55804]
[1739746561499,0.268,2681.1,2680.5,5.50620517]
[1739746561699,0.268,2681.1,2681.0,4.55735]
[1739746561903,2.43909522,2681.5,2681.2,3.72966]
[1739746562080,0.268,2681.3,2681.2,3.72966]
[1739746563414,1.42468968,2681.7,2681.1,3.72981]
[1739746563611,8.374,2681.8,2681.4,0.8274]
[1739746563813,8.642,2681.8,2681.7,3.72897]
[1739746565217,2.40259238,2682.3,2681.8,3.72883]
[1739746565523,0.268,2682.2,2681.9,3.72858]
[1739746565822,0.268,2682.2,2682.1,3.72842]
[1739746565990,0.1461027,2682.3,2682.1,3.72842]
[1739746566193,0.4141027,2682.3,2682.2,3.72828]
[1739746568439,0.4141027,2682.3,2682.1,3.72838]
[1739746569031,0.4141027,2682.3,2681.9,0.8274]
[1739746569334,0.4141027,2682.3,2682.1,3.72838]
[1739746569734,0.4141027,2682.3,2681.6,0.8274]
[1739746569735,1.83879238,2682.3,2681.6,0.8274]
[1739746569957,1.83879238,2682.3,2681.5,3.72912]
[1739746569958,0.8318,2682.0,2681.5,3.72912]
[1739746570248,0.8318,2682.0,2681.6,3.0]
[1739746570404,0.8318,2682.0,2681.5,3.72912]
[1739746570603,1.42468968,2681.7,2680.9,3.73]
[1739746570831,4.50232,2681.6,2680.9,4.5227]
[1739746571013,5.42196968,2681.5,2681.0,3.72993]
[1739746571213,5.493617,2681.5,2680.8,3.73012]
[1739746571539,3.72947,2681.4,2680.8,3.73012]
[1739746571709,3.72947,2681.4,2680.6,4.52313]
[1739746571710,3.72968,2681.2,2680.6,4.52313]
[1739746571908,0.7731,2681.1,2680.6,8.25354]
[1739746572109,0.7731,2681.1,2680.5,0.91086361]
[1739746572110,2.26962139,2681.1,2680.5,0.91086361]
[1739746572319,5.15478968,2680.9,2680.4,3.73066]
[1739746572717,0.07101205,2680.8,2680.4,3.73066]
[1739746573020,0.268,2680.7,2680.4,3.73066]
[1739746573411,0.07101205,2680.6,2680.4,3.73066]
[1739746573613,0.07101205,2680.6,2680.5,4.52334]
[1739746573814,0.07101205,2680.6,2680.5,3.73064]
[1739746574538,0.07101205,2680.6,2680.4,3.73066]
[1739746574756,0.07101205,2680.6,2680.3,0.7927]
[1739746574958,0.07101205,2680.6,2680.3,4.52362]
[1739746575257,0.07101205,2680.6,2680.4,3.73077]
[1739746575411,0.07101205,2680.6,2680.5,3.73064]
[1739746576722,0.268,2680.7,2680.4,3.73078]
[1739746576945,0.268,2680.7,2680.5,3.73064]
[1739746577261,0.07080191,2680.6,2680.5,3.73064]
[1739746577407,0.268,2680.7,2680.6,3.7305]
[1739746577840,0.33880191,2680.7,2680.4,7.46144]
[1739746578041,0.33880191,2680.7,2680.4,3.73066]
[1739746578954,0.33880191,2680.7,2680.4,7.46136]
[1739746579338,0.33880191,2680.7,2680.5,3.73063]
[1739746580411,0.07080191,2680.7,2680.4,3.73066]
[1739746580762,0.268,2680.8,2680.5,3.73051]
[1739746580912,0.268,2680.8,2680.6,3.73041]
[1739746581260,0.268,2680.8,2680.5,3.73051]
[1739746581606,0.268,2680.8,2680.3,4.52356]
[1739746581905,0.268,2680.8,2680.4,3.73078]
[1739746582110,0.667811,2680.8,2680.4,3.73078]
[1739746583146,0.7731,2680.7,2680.2,6.73097]
[1739746583644,0.7731,2680.7,2680.3,3.73082]
[1739746585741,0.667811,2680.8,2680.3,3.73082]
[1739746585949,0.268,2680.8,2680.5,3.73057]
[1739746586272,0.268,2680.8,2680.7,3.73036]
[1739746588735,0.268,2680.8,2680.6,3.73048]
[1739746588935,0.33223832,2680.8,2680.6,3.73048]
[1739746590234,0.33223832,2680.8,2680.6,7.46096]
[1739746591088,0.33223832,2680.8,2680.6,3.73048]
[1739746592293,0.33223832,2680.8,2680.6,3.73044]
[1739746592588,0.33223832,2680.8,2680.7,3.73036]
[1739746593088,0.33223832,2680.8,2680.6,3.73049]
[1739746593569,0.06423832,2680.8,2680.7,3.73036]
[1739746594957,0.268,2681.0,2680.7,3.73036]
[1739746595357,0.0619441,2680.9,2680.7,3.73036]
[1739746600387,0.0619441,2680.9,2680.6,3.7305]
[1739746600589,0.0619441,2680.9,2680.7,3.73033]
[1739746602316,0.0619441,2680.9,2680.7,3.7303]
[1739746602492,0.0619441,2680.9,2680.8,3.73022]
[1739746603021,0.0619441,2680.9,2680.2,0.8226]
[1739746603222,0.7677,2680.8,2680.5,3.73058]
[1739746603777,0.06206735,2680.7,2680.5,3.73058]
[1739746604199,0.06206735,2680.6,2680.5,3.73058]
[1739746604579,0.7677,2680.8,2680.6,3.73048]
[1739746604826,0.7677,2680.8,2680.6,7.46091]
[1739746605027,0.7677,2680.8,2680.7,3.73036]
[1739746605633,0.268,2681.0,2680.8,3.7302]
[1739746606611,0.268,2681.0,2680.7,3.73032]
[1739746608819,0.268,2681.0,2680.7,3.73033]
[1739746610128,0.268,2681.0,2680.8,3.73021]
[1739746610842,0.268,2681.0,2680.4,0.8226]
[1739746611043,0.268,2681.0,2680.7,3.7303]
[1739746611395,0.268,2681.0,2680.8,3.73011]
[1739746611596,0.268,2681.0,2680.7,3.7303]
[1739746611798,0.268,2681.0,2680.8,3.73022]
[1739746612135,0.268,2681.0,2680.7,3.7303]
[1739746613030,0.268,2681.0,2680.8,3.73009]
[1739746613342,0.268,2681.0,2680.7,3.7303]
[1739746613648,0.268,2681.0,2680.8,3.73022]
[1739746615429,0.268,2681.0,2680.7,3.73033]
[1739746615944,0.268,2681.0,2680.6,7.46078]
[1739746616157,0.268,2681.0,2680.7,3.73034]
[1739746618898,0.05983582,2680.9,2680.7,3.73034]
[1739746622491,0.05983582,2680.9,2680.7,3.73029]
[1739746627072,0.05983582,2680.9,2680.6,3.73049]
[1739746627402,0.786,2680.8,2680.6,3.73049]
[1739746627907,0.05981014,2680.7,2680.6,3.73049]
[1739746628070,0.786,2680.8,2680.6,3.73049]
[1739746628272,0.05981014,2680.7,2680.6,3.73049]
[1739746628510,0.786,2680.8,2680.6,3.73049]
[1739746628719,0.05981014,2680.7,2680.6,3.73049]
[1739746629118,0.786,2680.8,2680.6,3.73049]
[1739746629416,0.05981014,2680.7,2680.6,3.73049]
[1739746629782,0.786,2680.8,2680.6,3.73049]
[1739746629983,0.05981014,2680.7,2680.6,3.73049]
[1739746630383,0.786,2680.8,2680.6,3.73049]
[1739746630583,0.05953866,2680.7,2680.6,3.73049]
[1739746630995,0.786,2680.8,2680.6,3.73049]
[1739746631192,0.05939056,2680.7,2680.6,3.73049]
[1739746631484,0.786,2680.8,2680.6,3.73049]
[1739746631698,0.05939056,2680.7,2680.6,3.73049]
[1739746631901,0.786,2680.8,2680.6,3.73049]
[1739746632099,0.05913047,2680.7,2680.6,3.73049]
[1739746632388,0.786,2680.8,2680.6,3.73049]
[1739746632593,0.05913047,2680.7,2680.1,0.7582]
[1739746632792,0.7909,2680.5,2680.0,3.73134]
[1739746633129,0.05907398,2680.4,2680.0,3.73134]
[1739746633532,0.05907398,2680.4,2679.8,1.51674501]
[1739746633685,0.05907398,2680.4,2680.2,3.73097]
[1739746634319,0.05907398,2680.4,2680.0,3.73126]
[1739746634897,0.05907398,2680.4,2680.0,7.46253]
[1739746635113,0.05907398,2680.4,2680.0,3.73126]
[1739746635312,4.52191,2680.3,2679.7,3.73175]
[1739746635508,4.516071,2680.2,2679.7,3.73175]
[1739746635826,4.52217,2680.1,2679.5,7.46398]
[1739746636197,0.05869903,2680.0,2679.5,7.46398]
[1739746636720,0.05869903,2680.0,2679.5,3.73196]
[1739746636928,0.58939577,2680.0,2679.5,3.73196]
[1739746637287,0.53069674,2680.0,2679.5,7.4639]
[1739746637823,0.53069674,2680.0,2679.4,0.7582]
[1739746638001,4.52238,2679.9,2679.3,3.73221]
[1739746638327,4.58089409,2679.9,2679.3,3.73221]
[1739746638625,0.51115908,2679.8,2679.3,3.73221]
[1739746638821,0.51115908,2679.8,2679.3,7.46443]
[1739746638988,0.05842164,2679.7,2679.3,7.46445]
[1739746639319,0.51115908,2679.8,2679.3,7.46445]
[1739746639524,0.0583651,2679.6,2679.4,3.73216]
[1739746639725,0.51115908,2679.8,2679.4,3.73216]
[1739746639921,0.0583651,2679.5,2679.4,3.73216]
[1739746640110,0.7909,2679.9,2679.5,3.73203]
[1739746640422,0.0583651,2679.8,2679.4,3.73216]
[1739746640925,0.0583651,2679.8,2679.3,3.73224]
[1739746641222,0.0583651,2679.8,2679.4,3.73215]
[1739746641391,0.0583651,2679.8,2679.4,3.73209]
[1739746641792,3.7900451,2679.8,2679.3,3.73231]
[1739746641991,0.89781344,2679.7,2679.3,3.73231]
[1739746642341,0.84914692,2679.6,2679.2,3.73244]
[1739746642786,4.58111692,2679.6,2679.0,3.73265]
[1739746642991,3.73224,2679.4,2678.8,3.73291]
[1739746643223,0.7909,2679.2,2678.8,3.73291]
[1739746643752,0.05807221,2679.1,2678.6,0.7582]
[1739746643945,0.05807221,2679.1,2678.8,3.73293]
[1739746644130,0.05807221,2679.1,2678.9,3.73279]
[1739746645250,0.05807221,2679.1,2678.8,6.73301]
[1739746645455,0.05807221,2679.1,2678.9,3.73287]
[1739746646752,0.05807221,2679.1,2678.7,3.73308]
[1739746646951,0.05807221,2679.1,2678.6,0.7582]
[1739746647147,0.05807221,2679.1,2678.9,3.73284]
[1739746649436,0.05807221,2679.1,2678.8,3.73299]
[1739746650056,0.05807221,2679.1,2678.9,3.73279]
[1739746655529,0.05807221,2679.1,2679.0,3.73273]
[1739746657059,0.05807221,2679.1,2678.8,3.7329]
[1739746658755,0.05807221,2679.1,2679.0,3.73273]
[1739746658955,0.05807221,2679.1,2679.0,4.877703]
[1739746659136,0.05807221,2679.1,2679.0,4.91502416]
[1739746659335,0.268,2679.4,2679.3,3.73231]
[1739746659550,0.268,2679.4,2679.3,4.50401]
[1739746659973,0.8224,2679.8,2679.3,0.7717]
[1739746660135,0.268,2679.6,2679.5,3.73194]
[1739746660972,0.32264658,2679.6,2679.5,3.73194]
[1739746661768,0.05464658,2679.6,2679.5,4.55552]
[1739746662067,0.268,2679.7,2679.5,4.55552]
[1739746662439,0.268,2679.7,2679.6,3.7319]
[1739746664565,0.8054,2680.1,2679.5,4.55552]
[1739746664765,0.05465686,2679.7,2679.6,0.7739]
[1739746664981,0.268,2680.0,2679.6,4.50567]
[1739746665484,0.05469797,2679.9,2679.6,4.50567]
[1739746668951,0.05469797,2679.9,2679.7,3.73174]
[1739746669295,0.05469797,2679.9,2679.7,3.73168]
[1739746671694,0.05469797,2679.9,2679.8,3.73162]
[1739746671897,0.05469797,2679.9,2679.7,3.73168]
[1739746675376,0.05469797,2679.9,2679.6,4.50579]
[1739746676470,0.05469797,2679.9,2679.7,3.73173]
[1739746677203,0.05469797,2679.9,2679.6,4.50578]
[1739746679807,0.05469797,2679.9,2679.7,3.73169]
[1739746682432,0.05469797,2679.9,2679.8,3.73162]
[1739746682723,0.268,2680.1,2679.8,5.373341]
[1739746682901,0.268,2680.1,2680.0,3.73134]
[1739746683633,0.7811,2680.5,2680.3,3.7309]
[1739746683932,0.268,2680.4,2680.1,3.7311]
[1739746685226,0.268,2680.3,2680.2,3.73104]
[1739746687329,0.268,2680.3,2680.2,3.73106]
[1739746687559,0.7811,2680.5,2680.3,3.73085]
[1739746687834,0.268,2680.4,2680.3,3.73085]
[1739746688129,0.268,2680.4,2680.2,3.73106]
[1739746688296,0.268,2680.4,2680.2,3.73099]
[1739746688496,0.268,2680.4,2680.3,3.73092]
[1739746689232,5.34,2680.8,2680.5,3.73057]
[1739746689435,0.268,2680.7,2680.6,3.7305]
[1739746689598,0.7811,2680.9,2680.6,3.7305]
[1739746689800,0.268,2680.8,2680.6,3.7305]
[1739746690199,0.268,2680.8,2680.6,3.7304]
[1739746690442,0.268,2680.8,2680.6,4.91054]
[1739746690613,0.268,2680.8,2680.7,3.73036]
[1739746693773,0.268,2681.0,2680.8,3.73022]
[1739746699827,0.268,2681.0,2680.8,3.73015]
[1739746700079,0.268,2681.0,2680.8,3.73013]
[1739746703409,0.268,2681.0,2680.6,4.53759]
[1739746703707,0.268,2681.0,2680.7,3.73033]
[1739746703932,0.268,2681.0,2680.6,4.53759]
[1739746704210,0.268,2681.0,2680.6,8.268]
[1739746704707,0.268,2681.0,2680.6,4.53751]
[1739746705020,0.268,2681.0,2680.7,3.73035]
[1739746705213,0.268,2681.0,2680.6,8.26788]
[1739746705579,0.268,2681.0,2680.7,3.73034]
[1739746709028,0.268,2681.0,2680.8,3.73021]
[1739746709029,0.05217479,2680.9,2680.8,3.73021]
[1739746710029,0.268,2681.0,2680.9,3.73009]
[1739746711352,0.268,2681.0,2680.8,3.7301]
[1739746711940,0.268,2681.0,2680.4,0.8077]
[1739746711941,3.99797,2681.0,2680.4,0.8077]
[1739746712123,4.51849,2680.9,2680.2,1.54286127]
[1739746712433,4.51849,2680.9,2680.4,3.73071]
[1739746712833,0.7884,2680.9,2680.4,3.73066]
[1739746713038,0.7884,2680.9,2680.5,3.73062]
[1739746713205,0.7884,2680.9,2680.4,3.73066]
[1739746713405,4.25844416,2680.8,2680.4,3.73066]
[1739746714629,0.7884,2680.7,2680.4,3.73066]
[1739746717052,0.7884,2680.7,2680.2,6.73098]
[1739746717342,4.51878,2680.7,2680.2,6.73098]
[1739746718550,0.7884,2680.7,2680.3,3.73089]
[1739746719953,0.7884,2680.7,2680.2,6.73098]
[1739746720118,4.52717,2680.6,2679.9,1.42254472]
[1739746720318,4.52717,2680.6,2680.1,3.73112]
[1739746721255,0.7966,2680.6,2680.2,3.73106]
[1739746723956,0.04967781,2680.5,2680.2,3.73106]
[1739746724965,0.23265243,2680.5,2679.8,4.5356]
[1739746725163,5.00342624,2680.4,2679.8,7.4631]
[1739746725459,0.04787788,2680.3,2679.8,7.4631]
[1739746725660,0.268,2680.2,2679.8,7.4631]